bitfinex/quotes_SOLUSD_20241220
["timestamp","ask_amount","ask_price","bid_price","bid_amount"]
[1734700859258,25.55855702,184.16,184.08,25.55855702]
[1734700859648,0.12549,184.17,184.1,25.55855702]
[1734700859879,25.55855702,184.18,184.1,25.55855702]
[1734700860179,20.0,184.11,184.04,25.55855702]
[1734700860385,20.0,184.09,184.0,25.55855702]
[1734700860565,20.0,184.09,183.98,25.55855702]
[1734700860566,20.0,184.05,183.98,25.55855702]
[1734700860748,32.8617,184.13,183.96,25.55855702]
[1734700860749,20.0,184.03,183.96,25.55855702]
[1734700860949,25.55855702,184.04,183.96,25.55855702]
[1734700861453,25.55855702,184.0,183.92,25.55855702]
[1734700861649,25.55855702,183.98,183.9,25.55855702]
[1734700861850,25.55855702,183.98,183.89,6.6452]
[1734700862085,25.55855702,183.98,183.9,25.55855702]
[1734700862581,25.55855702,184.02,183.94,25.55855702]
[1734700862757,20.0,184.03,183.94,25.55855702]
[1734700863072,25.55855702,184.04,183.96,25.55855702]
[1734700863273,20.0,184.01,183.94,25.55855702]
[1734700863451,25.55855702,184.02,183.89,7.46067632]
[1734700863654,20.0,183.97,183.89,32.20375702]
[1734700863855,25.55855702,183.96,183.85,21.783397]
[1734700864053,25.55855702,183.94,183.85,25.55855702]
[1734700864379,25.55855702,183.94,183.87,25.55855702]
[1734700864678,0.12549,183.95,183.87,25.55855702]
[1734700864879,25.55855702,183.96,183.87,25.55855702]
[1734700865456,0.12549,183.95,183.87,25.55855702]
[1734700866466,25.55855702,183.96,183.87,25.55855702]
[1734700867674,25.55855702,183.94,183.87,25.55855702]
[1734700867881,0.12549,183.93,183.85,25.55855702]
[1734700868064,20.0,183.87,183.81,25.55855702]
[1734700868274,20.0,183.87,183.79,32.12915702]
[1734700868573,0.12549,183.81,183.75,0.6862406]
[1734700868775,0.12549,183.79,183.75,0.6862406]
[1734700869081,25.55855702,183.8,183.75,0.6862406]
[1734700869767,45.55855702,183.87,183.75,0.6862406]
[1734700869768,25.55855702,183.82,183.75,26.24479762]
[1734700870403,25.55855702,183.86,183.77,25.55855702]
[1734700870573,25.55855702,183.91,183.81,25.55855702]
[1734700870956,9.2045,183.94,183.81,25.55855702]
[1734700870957,25.55855702,183.89,183.81,25.55855702]
[1734700871257,25.55855702,183.91,183.83,25.55855702]
[1734700871474,25.55855702,183.93,183.85,25.55855702]
[1734700871688,25.55855702,183.95,183.87,25.55855702]
[1734700871890,25.55855702,183.93,183.85,25.55855702]
[1734700872489,25.55855702,183.95,183.87,25.55855702]
[1734700872863,25.55855702,183.92,183.83,20.0]
[1734700873186,25.55855702,183.94,183.85,25.55855702]
[1734700874593,25.55855702,183.92,183.83,25.55855702]
[1734700874779,0.12549,183.89,183.82,2.8924]
[1734700875294,25.55855702,183.86,183.8,6.4266]
[1734700875589,25.55855702,183.9,183.81,25.55855702]
[1734700875797,45.55855702,183.92,183.83,25.55855702]
[1734700875966,0.12549,183.91,183.83,25.55855702]
[1734700876168,25.55855702,183.94,183.85,25.55855702]
[1734700876359,25.55855702,183.98,183.89,25.55855702]
[1734700876976,25.55855702,183.98,183.91,25.55855702]
[1734700877181,25.55855702,183.96,183.87,25.55855702]
[1734700877378,25.55855702,183.94,183.87,25.55855702]
[1734700877571,0.12549,183.95,183.87,25.55855702]
[1734700877772,0.12549,183.93,183.87,25.55855702]
[1734700877989,25.55855702,183.96,183.87,25.55855702]
[1734700878173,25.55855702,183.94,183.87,25.55855702]
[1734700878489,0.12549,183.93,183.85,25.55855702]
[1734700878693,25.55855702,183.94,183.85,25.55855702]
[1734700879697,0.12549,183.95,183.88,25.55855702]
[1734700879989,25.55855702,183.96,183.88,25.55855702]
[1734700880197,20.0,183.95,183.88,25.55855702]
[1734700880613,20.0,183.93,183.86,25.55855702]
[1734700880775,25.68404702,183.94,183.84,25.55855702]
[1734700881098,13.04958584,184.04,183.82,25.55855702]
[1734700881099,20.0,183.89,183.82,25.55855702]
[1734700881301,20.0,183.87,183.8,31.98515702]
[1734700882015,25.55855702,183.9,183.82,25.55855702]
[1734700882306,0.12549,183.89,183.8,31.98515702]
[1734700882688,0.12549,183.87,183.8,25.55855702]
[1734700884366,25.55855702,183.92,183.82,25.55855702]
[1734700884679,20.0,183.89,183.82,25.55855702]
[1734700884995,25.55855702,183.92,183.82,25.55855702]
[1734700885298,0.12549,183.89,183.82,25.55855702]
[1734700885907,25.55855702,183.9,183.82,25.55855702]
[1734700886087,25.55855702,183.92,183.84,25.55855702]
[1734700886887,0.12549,183.91,183.82,25.55855702]
[1734700887086,25.55855702,183.88,183.8,25.55855702]
[1734700887286,0.12549,183.87,183.8,25.55855702]
[1734700887796,20.0,183.85,183.75,4.41450731]
[1734700888000,0.12549,183.81,183.75,0.6862406]
[1734700888174,0.12549,183.79,183.75,0.6862406]
[1734700888376,32.01975702,183.87,183.75,0.6862406]
[1734700888377,162.78404702,183.76,183.75,0.6862406]
[1734700888777,25.55855702,183.76,183.75,0.6862406]
[1734700888992,25.68404702,183.76,183.75,0.6862406]
[1734700889477,25.55855702,183.78,183.75,0.6862406]
[1734700889899,25.55855702,183.8,183.75,0.6862406]
[1734700890074,25.55855702,183.85,183.76,25.55855702]
[1734700890276,25.55855702,183.87,183.8,25.55855702]
[1734700890496,25.55855702,183.85,183.76,25.55855702]
[1734700891615,0.12549,183.84,183.76,25.55855702]
[1734700893825,137.1,183.81,183.75,0.6862406]
[1734700893993,55.55855702,183.77,183.75,0.6862406]
[1734700894315,0.12549,183.76,183.75,0.6862406]
[1734700894483,6.95650682,183.76,183.75,0.6862406]
[1734700897491,0.12549,183.72,183.62,25.55855702]
[1734700897697,0.12549,183.7,183.62,25.55855702]
[1734700898830,20.0,183.68,183.61,6.5722]
[1734700899200,25.68404702,183.67,183.61,6.5722]
[1734700900534,25.55855702,183.65,183.59,2.9318]
[1734700901108,25.55855702,183.67,183.59,2.9318]
[1734700901297,45.55855702,183.69,183.6,25.55855702]
[1734700901503,25.55855702,183.67,183.59,2.9318]
[1734700901901,25.55855702,183.65,183.59,2.9318]
[1734700902109,0.12549,183.64,183.59,2.9318]
[1734700902310,25.55855702,183.63,183.56,6.8872406]
[1734700902514,25.55855702,183.61,183.56,6.8872406]
[1734700903093,25.68404702,183.57,183.56,0.6862406]
[1734700903505,25.68404702,183.57,183.52,3.67]
[1734700903712,25.68404702,183.53,183.52,3.67]
[1734700903899,0.12549,183.52,183.41,25.55855702]
[1734700904124,0.12549,183.52,183.45,25.55855702]
[1734700904505,25.55855702,183.53,183.45,25.55855702]
[1734700904705,0.12549,183.52,183.45,25.55855702]
[1734700904913,25.55855702,183.53,183.45,25.55855702]
[1734700905139,25.55855702,183.55,183.47,25.55855702]
[1734700905637,0.12549,183.57,183.49,25.55855702]
[1734700906000,25.55855702,183.56,183.47,25.55855702]
[1734700906306,25.55855702,183.54,183.45,25.55855702]
[1734700906505,0.12549,183.53,183.47,25.55855702]
[1734700907226,25.55855702,183.54,183.47,25.55855702]
[1734700907609,25.55855702,183.56,183.47,25.55855702]
[1734700908306,14.13291918,183.63,183.45,25.55855702]
[1734700908307,25.55855702,183.54,183.45,25.55855702]
[1734700909306,0.12549,183.49,183.4,28.407166]
[1734700909510,25.55855702,183.5,183.4,53.96572302]
[1734700910423,25.55855702,183.5,183.4,47.39752302]
[1734700910630,25.55855702,183.47,183.4,47.39752302]
[1734700910805,25.55855702,183.49,183.42,25.55855702]
[1734700911006,25.55855702,183.51,183.42,25.55855702]
[1734700912437,25.55855702,183.49,183.42,25.55855702]
[1734700912739,25.55855702,183.49,183.4,25.55855702]
[1734700914128,25.55855702,183.51,183.42,25.55855702]
[1734700918348,25.55855702,183.53,183.44,25.55855702]
[1734700918545,0.12549,183.52,183.44,25.55855702]
[1734700918844,25.55855702,183.53,183.44,25.55855702]
[1734700919049,5.0,183.51,183.44,25.55855702]
[1734700919346,30.55855702,183.51,183.42,25.55855702]
[1734700919912,0.12549,183.5,183.42,25.55855702]
[1734700920128,0.12549,183.5,183.39,23.62088593]
[1734700920317,25.55855702,183.49,183.39,23.62088593]
[1734700920517,0.12549,183.5,183.42,25.55855702]
[1734700921143,5.0,183.51,183.44,25.55855702]
[1734700921444,30.55855702,183.51,183.39,3.62088593]
[1734700921647,30.55855702,183.51,183.42,25.55855702]
[1734700921852,25.55855702,183.49,183.42,25.55855702]
[1734700922653,0.12549,183.5,183.42,25.55855702]
[1734700923142,30.55855702,183.51,183.42,25.55855702]
[1734700923508,5.0,183.51,183.44,25.55855702]
[1734700923913,5.0,183.51,183.46,31.94395702]
[1734700924719,0.12549,183.5,183.44,25.55855702]
[1734700925122,0.12549,183.5,183.42,31.61345702]
[1734700926848,25.55855702,183.47,183.4,25.55855702]
[1734700927056,25.55855702,183.47,183.39,2.8033]
[1734700927057,0.12549,183.46,183.39,2.8033]
[1734700927657,25.55855702,183.45,183.38,26.24479762]
[1734700927829,25.55855702,183.45,183.38,0.6862406]
[1734700927830,0.12549,183.44,183.38,0.6862406]
[1734700928028,25.55855702,183.43,183.38,0.6862406]
[1734700928262,25.55855702,183.45,183.38,26.24479762]
[1734700928438,25.55855702,183.47,183.38,26.24479762]
[1734700928628,25.55855702,183.49,183.42,25.55855702]
[1734700928832,25.55855702,183.49,183.4,25.55855702]
[1734700929054,0.12549,183.48,183.4,25.55855702]
[1734700929232,0.12549,183.48,183.42,25.55855702]
[1734700929555,0.12549,183.48,183.4,25.55855702]
[1734700930047,0.12549,183.46,183.38,26.24479762]
[1734700930258,0.12549,183.44,183.38,0.6862406]
[1734700930430,0.12549,183.42,183.38,0.6862406]
[1734700931162,16.22987221,183.42,183.38,0.6862406]
[1734700931327,0.12549,183.4,183.38,0.6862406]
[1734700931533,16.22987221,183.4,183.38,0.6862406]
[1734700931747,30.12549,183.39,183.38,0.6862406]
[1734700932230,0.12549,183.33,183.23,22.67368221]
[1734700932432,0.12549,183.31,183.23,6.5693]
[1734700932663,0.12549,183.31,183.23,22.17368221]
[1734700932826,0.12549,183.31,183.24,16.10438221]
[1734700933028,25.92209881,183.31,183.23,25.79660881]
[1734700933223,0.12549,183.26,183.18,25.79660881]
[1734700933455,25.79660881,183.27,183.18,25.79660881]
[1734700933662,33.09851117,183.33,183.24,25.79660881]
[1734700933841,55.79660881,183.31,183.22,25.79660881]
[1734700934042,0.12549,183.28,183.22,25.79660881]
[1734700934240,0.12549,183.28,183.11,2.7153]
[1734700934241,0.12549,183.26,183.11,2.7153]
[1734700934439,30.0,183.29,183.21,25.79660881]
[1734700934440,25.79660881,183.29,183.21,25.79660881]
[1734700934659,25.79660881,183.31,183.23,25.79660881]
[1734700934984,25.79660881,183.31,183.16,0.8186107]
[1734700934985,25.79660881,183.31,183.21,25.79660881]
[1734700935493,55.79660881,183.31,183.21,25.79660881]
[1734700935795,25.79660881,183.32,183.23,25.79660881]
[1734700935981,25.79660881,183.3,183.23,25.79660881]
[1734700936359,25.79660881,183.3,183.21,25.79660881]
[1734700936969,0.12549,183.29,183.21,25.79660881]
[1734700937158,0.12549,183.27,183.2,6.5439]
[1734700937360,25.79660881,183.28,183.2,6.5439]
[1734700937570,25.79660881,183.3,183.21,25.79660881]
[1734700937980,25.79660881,183.3,183.19,0.6862406]
[1734700938172,0.12549,183.29,183.21,25.79660881]
[1734700939178,25.79660881,183.3,183.21,25.79660881]
[1734700939777,25.79660881,183.32,183.23,25.79660881]
[1734700940463,25.79660881,183.3,183.21,28.55200881]
[1734700940660,0.12549,183.29,183.21,28.55200881]
[1734700941292,0.12549,183.27,183.21,2.7554]
[1734700941461,25.79660881,183.26,183.19,0.6862406]
[1734700941860,25.79660881,183.28,183.19,26.48284941]
[1734700942488,0.12549,183.27,183.19,26.48284941]
[1734700942796,25.79660881,183.28,183.19,26.48284941]
[1734700942976,25.79660881,183.28,183.21,25.79660881]
[1734700943172,30.79660881,183.32,183.23,25.79660881]
[1734700943580,30.79660881,183.32,183.24,6.006]
[1734700944167,25.79660881,183.27,183.19,0.6862406]
[1734700944488,25.79660881,183.27,183.19,26.48284941]
[1734700944693,25.79660881,183.29,183.21,25.79660881]
[1734700944993,25.79660881,183.29,183.22,6.4014]
[1734700945200,25.79660881,183.31,183.23,25.79660881]
[1734700945398,5.0,183.32,183.23,25.79660881]
[1734700945766,5.0,183.32,183.27,25.79660881]
[1734700945968,5.0,183.32,183.27,28.64990881]
[1734700946162,5.0,183.32,183.29,25.79660881]
[1734700947269,5.0,183.32,183.27,28.64990881]
[1734700947468,5.0,183.32,183.27,2.8533]
[1734700947881,25.79660881,183.31,183.23,25.79660881]
[1734700948090,0.12549,183.3,183.23,25.79660881]
[1734700948397,25.79660881,183.27,183.19,26.48284941]
[1734700948602,25.79660881,183.25,183.19,0.6862406]
[1734700949099,25.79660881,183.29,183.19,26.48284941]
[1734700949566,25.79660881,183.29,183.21,25.79660881]
[1734700949772,45.79660881,183.31,183.22,6.2779]
[1734700950569,45.79660881,183.31,183.19,0.6862406]
[1734700950570,0.12549,183.22,183.19,0.6862406]
[1734700950799,25.79660881,183.23,183.19,0.6862406]
[1734700951099,0.12549,183.2,183.19,0.6862406]
[1734700952091,0.12549,183.2,183.19,0.5608406]
[1734700952397,0.12549,183.11,183.03,25.79660881]
[1734700952570,25.92209881,183.11,183.02,6.4848]
[1734700952769,25.92209881,183.11,183.03,25.79660881]
[1734700952969,0.12549,183.11,183.04,16.15584823]
[1734700953174,20.0,183.1,183.02,6.4848]
[1734700953480,16.28133823,183.11,183.02,22.94368323]
[1734700953481,16.15584823,183.11,183.02,22.94368323]
[1734700954599,16.15584823,183.09,183.02,0.303035]
[1734700954800,16.15584823,183.11,183.02,16.45888323]
[1734700954985,25.84304219,183.15,183.06,25.84304219]
[1734700955179,0.12549,183.14,183.06,25.84304219]
[1734700955374,25.84304219,183.15,183.06,25.84304219]
[1734700955777,5.0,183.11,183.06,25.84304219]
[1734700956103,5.0,183.11,183.03,9.2497]
[1734700956286,5.0,183.11,183.04,25.84304219]
[1734700956983,5.0,183.11,183.06,25.84304219]
[1734700957182,5.0,183.11,183.02,0.303035]
[1734700957484,30.84304219,183.11,183.02,0.303035]
[1734700957699,30.84304219,183.11,183.03,25.84304219]
[1734700957892,5.0,183.11,183.03,25.84304219]
[1734700959577,5.0,183.11,183.09,32.27274219]
[1734700959777,5.0,183.11,183.1,25.84304219]
[1734700960705,25.84304219,183.26,183.13,20.0]
[1734700961014,25.84304219,183.28,183.19,25.84304219]
[1734700961385,6.9862946,183.29,183.21,25.84304219]
[1734700961700,6.9862946,183.29,183.23,25.84304219]
[1734700962017,30.84304219,183.32,183.23,25.84304219]
[1734700962596,5.0,183.32,183.25,25.84304219]
[1734700962807,5.0,183.32,183.29,25.84304219]
[1734700964019,5.0,183.32,183.31,25.84304219]
[1734700964525,5.0,183.32,183.29,25.84304219]
[1734700964936,5.0,183.32,183.27,25.84304219]
[1734700965136,5.0,183.32,183.29,25.84304219]
[1734700965300,5.0,183.32,183.27,25.84304219]
[1734700965733,5.0,183.32,183.29,25.84304219]
[1734700966024,5.0,183.32,183.27,25.84304219]
[1734700966228,5.0,183.32,183.25,25.84304219]
[1734700966535,30.84304219,183.32,183.23,25.84304219]
[1734700967517,25.84304219,183.3,183.21,25.84304219]
[1734700968209,25.84304219,183.3,183.23,25.84304219]
[1734700968413,50.84304219,183.32,183.23,25.84304219]
[1734700968621,30.84304219,183.32,183.23,25.84304219]
[1734700968931,30.84304219,183.32,183.16,7.19875449]
[1734700968932,5.0,183.32,183.25,25.84304219]
[1734700969100,5.0,183.32,183.27,25.84304219]
[1734700969930,5.0,183.32,183.29,25.84304219]
[1734700971620,5.0,183.32,183.17,0.12549]
[1734700971621,5.0,183.32,183.27,25.84304219]
[1734700972506,5.0,183.32,183.29,25.84304219]
[1734700973436,5.0,183.32,183.31,25.84304219]
[1734700973616,5.0,183.32,183.29,25.84304219]
[1734700975430,5.0,183.32,183.31,25.84304219]
[1734700980340,5.0,183.32,183.27,25.84304219]
[1734700980544,5.0,183.32,183.25,25.84304219]
[1734700980911,5.0,183.32,183.27,25.84304219]
[1734700981113,5.0,183.32,183.29,25.84304219]
[1734700982228,0.12549,183.31,183.18,0.81824611]
[1734700982431,25.84304219,183.29,183.21,25.84304219]
[1734700982606,0.12549,183.28,183.21,25.84304219]
[1734700983008,25.84304219,183.25,183.17,25.84304219]
[1734700983245,25.84304219,183.19,183.11,26.14607719]
[1734700983408,20.0,183.16,183.11,0.303035]
[1734700983604,0.12549,183.15,183.11,0.303035]
[1734700984142,25.84304219,183.17,183.11,0.303035]
[1734700984317,25.84304219,183.19,183.11,26.14607719]
[1734700985338,25.84304219,183.17,183.11,0.303035]
[1734700985812,0.12549,183.16,183.11,0.303035]
[1734700986131,25.84304219,183.15,183.11,0.303035]
[1734700987343,25.84304219,183.13,183.11,0.303035]
[1734700987734,25.84304219,183.15,183.11,0.303035]
[1734700987935,25.84304219,183.19,183.11,26.14607719]
[1734700988119,55.84304219,183.23,183.13,25.84304219]
[1734700988319,55.84304219,183.25,183.15,25.84304219]
[1734700988619,25.84304219,183.25,183.17,25.84304219]
[1734700988814,25.84304219,183.21,183.11,0.303035]
[1734700989014,0.12549,183.18,183.11,26.14607719]
[1734700989221,25.84304219,183.19,183.11,26.14607719]
[1734700989442,25.84304219,183.21,183.13,25.84304219]
[1734700989813,20.0,183.12,183.11,0.303035]
[1734700990017,30.0,183.1,182.95,25.84304219]
[1734700990327,25.84304219,183.11,183.01,25.84304219]
[1734700990756,25.84304219,183.07,182.99,25.84304219]
[1734700991057,25.84304219,183.09,183.01,25.84304219]
[1734700992316,25.84304219,183.09,182.99,25.84304219]
[1734700992712,25.84304219,183.07,182.97,25.84304219]
[1734700992918,25.84304219,183.05,182.95,25.84304219]
[1734700993131,25.84304219,183.03,182.95,25.84304219]
[1734700993821,25.84304219,183.03,182.93,26.52815239]
[1734700994549,25.84304219,183.03,182.95,25.84304219]
[1734700994916,25.84304219,183.05,182.97,25.84304219]
[1734700995121,25.84304219,183.07,182.99,25.84304219]
[1734700995533,25.84304219,183.05,182.97,25.84304219]
[1734700995944,25.84304219,183.07,182.99,25.84304219]
[1734700996450,25.84304219,183.11,183.01,25.84304219]
[1734700996747,25.84304219,183.11,183.03,25.84304219]
[1734700997123,25.84304219,183.15,183.07,25.84304219]
[1734700998027,25.84304219,183.11,183.03,31.98284219]
[1734700998227,25.84304219,183.11,183.03,25.84304219]
[1734700998444,25.84304219,183.09,183.01,25.84304219]
[1734700998740,25.84304219,183.11,183.03,25.84304219]
[1734700999627,25.84304219,183.13,183.05,25.84304219]
[1734700999827,25.84304219,183.15,183.07,25.84304219]
[1734701000622,25.84304219,183.13,183.05,25.84304219]
[1734701000958,30.0,183.16,183.0,1.31939412]
[1734701000959,25.84304219,183.09,183.01,25.84304219]
[1734701001249,25.84304219,183.07,183.0,0.5]
[1734701002950,25.84304219,183.09,183.01,25.84304219]
[1734701004922,25.84304219,183.15,183.0,0.5]
[1734701004923,25.84304219,183.06,183.0,0.5]
[1734701005766,25.84304219,183.1,183.01,25.84304219]
[1734701005935,25.84304219,183.08,183.0,0.5]
[1734701006129,25.84304219,183.1,183.01,25.84304219]
[1734701006327,25.84304219,183.06,183.0,0.5]
[1734701006542,25.84304219,183.02,183.0,0.5]
[1734701006739,25.84304219,183.04,183.0,0.5]
[1734701007225,25.84304219,183.06,183.0,0.5]
[1734701007844,25.84304219,183.04,183.0,0.5]
[1734701011363,25.84304219,183.02,183.0,0.5]
[1734701011948,0.12549,183.01,183.0,0.5]
[1734701012463,25.84304219,183.02,183.0,0.5]
[1734701013040,25.84304219,183.04,183.0,0.5]
[1734701013664,25.84304219,183.02,183.0,0.5]
[1734701014329,0.12549,183.01,183.0,0.5]
[1734701015065,55.84304219,183.02,183.0,0.8242682]
[1734701015573,25.84304219,183.02,183.0,0.8242682]
[1734701017139,0.12549,183.01,183.0,0.8242682]
[1734701017343,30.12549,183.01,183.0,0.8242682]
[1734701018271,0.12549,183.01,183.0,0.8242682]
[1734701018474,55.96853219,183.01,183.0,0.8242682]
[1734701019481,25.96853219,183.01,183.0,0.8242682]
[1734701020375,25.84304219,183.01,183.0,0.8242682]
[1734701020747,25.84304219,183.03,183.0,0.8242682]
[1734701021246,13.653,183.11,183.0,0.8242682]
[1734701021247,25.84304219,183.02,183.0,0.8242682]
[1734701021665,25.84304219,183.01,183.0,0.8242682]
[1734701022262,25.84304219,183.03,183.0,0.8242682]
[1734701022471,25.84304219,183.05,183.0,0.8242682]
[1734701022646,25.84304219,183.07,183.0,26.66731039]
[1734701022845,25.84304219,183.09,183.01,25.84304219]
[1734701023049,32.84060346,183.1,183.02,25.84304219]
[1734701023350,11.14804964,183.16,183.04,25.84304219]
[1734701023351,25.84304219,183.12,183.04,25.84304219]
[1734701023669,25.84304219,183.14,183.06,25.84304219]
[1734701023870,25.84304219,183.15,183.07,25.84304219]
[1734701024047,25.84304219,183.15,183.08,25.84304219]
[1734701024252,25.84304219,183.16,183.09,25.84304219]
[1734701024460,36.99756127,183.22,183.02,6.86781239]
[1734701024461,25.84304219,183.17,183.1,25.84304219]
[1734701024680,24.41126647,183.23,183.02,6.86781239]
[1734701024681,11.16754532,183.23,183.14,25.84304219]
[1734701024860,11.16754532,183.23,183.09,20.0]
[1734701024861,25.84304219,183.24,183.17,25.84304219]
[1734701025061,25.84304219,183.24,183.16,25.84304219]
[1734701025584,25.84304219,183.25,183.17,25.84304219]
[1734701026457,25.84304219,183.25,183.12,0.81874856]
[1734701026458,25.84304219,183.23,183.15,25.84304219]
[1734701026771,25.84304219,183.22,183.15,25.84304219]
[1734701026975,25.84304219,183.23,183.16,25.84304219]
[1734701027895,25.84304219,183.21,183.12,25.84304219]
[1734701028057,25.84304219,183.19,183.12,25.84304219]
[1734701028423,25.84304219,183.15,183.08,25.84304219]
[1734701028574,25.84304219,183.15,183.06,31.89874219]
[1734701028891,25.84304219,183.13,183.06,31.89874219]
[1734701029196,25.84304219,183.11,183.02,25.84304219]
[1734701029867,25.84304219,183.13,183.04,25.84304219]
[1734701030069,0.12549,183.12,183.04,25.84304219]
[1734701030395,25.84304219,183.11,183.04,25.84304219]
[1734701030903,25.84304219,183.13,183.04,25.84304219]
[1734701031064,25.84304219,183.13,183.06,25.84304219]
[1734701032204,25.84304219,183.15,183.06,25.84304219]
[1734701032698,25.84304219,183.17,183.08,25.84304219]
[1734701032906,25.84304219,183.15,183.08,25.84304219]
[1734701033601,25.84304219,183.17,183.08,25.84304219]
[1734701034205,25.84304219,183.15,183.06,25.84304219]
[1734701034679,25.84304219,183.13,183.06,25.84304219]
[1734701034881,25.84304219,183.13,183.04,25.84304219]
[1734701038904,25.84304219,183.09,183.03,0.3242682]
[1734701039075,25.84304219,183.07,183.03,0.3242682]
[1734701040514,25.84304219,183.05,183.03,0.3242682]
[1734701041183,25.84304219,183.07,183.03,0.3242682]
[1734701041809,2.8965,183.13,183.03,0.3242682]
[1734701041810,25.84304219,183.09,183.03,0.3242682]
[1734701041986,25.84304219,183.11,183.03,0.3242682]
[1734701042804,25.84304219,183.07,183.03,0.3242682]
[1734701043196,25.84304219,183.05,183.03,0.3242682]
[1734701043394,20.0,183.13,183.03,0.3242682]
[1734701043719,25.84304219,183.1,183.03,0.3242682]
[1734701044086,25.84304219,183.08,183.03,0.3242682]
[1734701044314,25.84304219,183.06,183.03,0.3242682]
[1734701045289,25.84304219,183.04,183.03,0.3242682]
[1734701046096,25.96853219,183.04,183.03,0.3242682]
[1734701046484,25.84304219,183.04,183.03,0.3242682]
[1734701046685,30.84304219,183.06,183.03,0.3242682]
[1734701047184,5.0,183.06,183.03,0.3242682]
[1734701049813,5.0,183.06,183.04,25.84304219]
[1734701050021,5.0,183.06,183.05,6.0596]
[1734701052016,5.0,183.06,183.03,0.3242682]
[1734701052394,30.84304219,183.06,183.03,0.3242682]
[1734701052718,5.0,183.06,183.03,0.3242682]
[1734701053926,30.84304219,183.06,183.03,0.3242682]
[1734701054734,25.84304219,183.04,183.03,0.3242682]
[1734701055030,25.96853219,183.04,183.03,0.3242682]
[1734701055698,25.84304219,183.04,183.03,0.3242682]
[1734701055903,30.84304219,183.06,183.03,0.3242682]
[1734701056713,25.84304219,183.04,183.03,0.3242682]
[1734701057335,30.84304219,183.06,183.03,0.3242682]
[1734701059035,25.84304219,183.04,183.03,0.3242682]
[1734701059534,55.96853219,183.04,183.03,0.3242682]
[1734701059900,25.96853219,183.04,183.03,0.3242682]
[1734701061608,25.84304219,183.04,183.03,0.3242682]
[1734701063625,25.96853219,183.04,183.03,0.3242682]
[1734701065021,39.62673219,183.04,183.03,0.3242682]
[1734701065509,25.96853219,183.04,183.03,0.3242682]
[1734701068310,25.84304219,183.04,183.03,0.3242682]
[1734701068823,30.84304219,183.06,183.03,0.3242682]
[1734701069216,5.0,183.06,183.03,0.3242682]
[1734701069535,5.0,183.06,183.05,25.84304219]
[1734701069840,2.8594,183.24,183.05,26.66214472]
[1734701069841,25.84304219,183.18,183.05,26.66214472]
[1734701070138,25.84304219,183.18,183.1,25.84304219]
[1734701073320,25.84304219,183.2,183.12,25.84304219]
[1734701074034,25.84304219,183.26,183.18,25.84304219]
[1734701074212,25.84304219,183.26,183.13,3.58553715]
[1734701074213,25.84304219,183.28,183.2,25.84304219]
[1734701075039,25.84304219,183.24,183.16,26.66159]
[1734701075531,25.84304219,183.25,183.17,25.84304219]
[1734701077241,25.84304219,183.23,183.15,25.84304219]
[1734701079230,25.84304219,183.21,183.13,28.60974219]
[1734701080048,25.84304219,183.27,183.18,25.84304219]
[1734701081552,25.84304219,183.27,183.17,21.872084]
[1734701081553,25.84304219,183.27,183.2,25.84304219]
[1734701081927,25.84304219,183.29,183.17,21.872084]
[1734701082146,25.84304219,183.25,183.17,25.84304219]
[1734701082850,25.84304219,183.19,183.13,2.7667]
[1734701083050,25.84304219,183.15,183.08,28.77074219]
[1734701083261,25.84304219,183.13,183.08,2.9277]
[1734701083421,25.84304219,183.13,183.09,21.880286]
[1734701083747,25.84304219,183.1,183.02,9.2435]
[1734701083949,25.84304219,183.08,183.02,9.2435]
[1734701084122,25.84304219,183.11,183.03,26.16731039]
[1734701084620,25.84304219,183.15,183.07,25.84304219]
[1734701084835,25.84304219,183.17,183.09,25.84304219]
[1734701087159,25.84304219,183.19,183.11,25.84304219]
[1734701088242,25.84304219,183.17,183.03,1.14312376]
[1734701088469,25.84304219,183.17,183.07,25.84304219]
[1734701089537,12.93798981,183.26,183.11,25.84304219]
[1734701089538,25.84304219,183.19,183.11,25.84304219]
[1734701090352,25.84304219,183.19,183.06,25.84304219]
[1734701090353,6.2954,183.31,183.17,25.84304219]
[1734701090567,25.84304219,183.28,183.19,25.84304219]
[1734701090746,25.84304219,183.26,183.19,25.84304219]
[1734701090930,25.84304219,183.26,183.17,25.84304219]
[1734701091132,25.84304219,183.24,183.17,25.84304219]
[1734701091546,25.84304219,183.22,183.14,2.6584]
[1734701091752,25.84304219,183.18,183.11,25.84304219]
[1734701091953,25.84304219,183.16,183.09,35.21714219]
[1734701092448,25.84304219,183.14,183.09,9.3741]
[1734701092659,25.84304219,183.14,183.09,6.6141]
[1734701093169,25.84304219,183.14,183.05,31.89574219]